[Event "35th Roquetas Festival 2024"]
[Site "Roquetas de Mar"]
[Date "2024.01.06"]
[Round "7.12"]
[White "Serrano Almendros, Alejandro"]
[Black "Tejedor Fuente, Enrique"]
[Result "0-1"]
[ECO "B48"]
[WhiteElo "2206"]
[BlackElo "2395"]
[Annotator "RC"]
[PlyCount "106"]
[EventDate "2024.01.02"]
[EventType "swiss"]
[EventCountry "ESP"]
[SourceTitle "playchess.com"]
[Source "ChessBase"]
[SourceQuality "1"]
[TimeControl "5400+30"]

1. e4 {[%emt 0:00:02]} c5 {[%emt 0:06:05]} 2. Nf3 {[%emt 0:00:08]} e6 {[%emt 0:00:52]} 3. d4 {[%emt 0:00:09]} cxd4 {[%emt 0:00:08]} 4. Nxd4 {[%emt 0:00:05]} Nc6 {[%emt 0:00:07]} 5. Nc3 {[%emt 0:00:14]} Qc7 {[%emt 0:00:46]} 6. Be3 {[%emt 0:00:22]} a6 {[%emt 0:00:42]} 7. g4 {[%emt 0:00:20]} b5 {[%emt 0:06:30]} 8. Nxc6 {[%emt 0:00:25]} dxc6 {[%emt 0:06:28]} 9. f4 {[%emt 0:01:19]} Bb7 {[%emt 0:03:29]} 10. Bg2 {[%emt 0:05:04]} c5 {[%emt 0:05:29]} 11. Qe2 {[%emt 0:19:09]} b4 {[%emt 0:04:39]} 12. Nd1 {[%emt 0:05:55]} Nf6 {[%emt 0:01:56]} 13. Nf2 {[%emt 0:00:14]} Bd6 {[%emt 0:03:50]} 14. g5 {[%emt 0:07:39]} Nd7 {[%emt 0:00:09]} 15. Qg4 {[%emt 0:03:53]} Nb6 {[%emt 0:05:00]} 16. Rd1 {[%emt 0:03:34]} O-O-O {[%emt 0:04:30]} 17. O-O {[%emt 0:00:55]} Kb8 {[%emt 0:01:05]} 18. a3 {[%emt 0:08:55]} e5 {[%emt 0:08:17]} 19. f5 f6 {[%emt 0:01:40]} 20. Nd3 {[%emt 0:14:16]} a5 {[%emt 0:01:15]} 21. axb4 {[%emt 0:04:41]} cxb4 {[%emt 0:00:40]} 22. Ra1 {[%emt 0:00:25]} Nc4 {[%emt 0:01:36]} 23. Bf2 {[%emt 0:00:22]} h6 {[%emt 0:02:50]} 24. g6 {[%emt 0:00:28]} Qc6 {[%emt 0:02:09]} 25. Qe2 {[%emt 0:04:49]} Rd7 {[%emt 0:01:07]} 26. b3 {[%emt 0:02:42]} Na3 {[%emt 0:00:06]} 27. Qe3 {[%emt 0:00:04]} Ba6 {[%emt 0:04:21]} 28. Rfc1 {[%emt 0:01:48]} Rc8 {[%emt 0:02:16]} 29. Bf1 {[%emt 0:04:21]} Rb7 {[%emt 0:00:56]} 30. Ra2 {[%emt 0:02:09]} Rcc7 {[%emt 0:01:21]} 31. h4 {[%emt 0:02:33]} Kc8 {[%emt 0:02:21]} 32. Kh2 {[%emt 0:00:27]} Kd8 {[%emt 0:00:34]} 33. Be1 {[%emt 0:00:29]} Ke7 {[%emt 0:01:45]} 34. Kh3 {[%emt 0:01:38]} Kf8 {[%emt 0:05:27]} 35. Be2 {[%emt 0:00:01]} Ke7 {[%emt 0:01:30]} 36. h5 {[%emt 0:00:16]} Qe8 {[%emt 0:00:43]} 37. Nxb4 {[%emt 0:02:00]} axb4 {[%emt 0:01:23]} 38. Bxa6 {[%emt 0:00:05]} Ra7 {[%emt 0:03:06]} 39. Bd3 {[%emt 0:00:35]} Qc8 {[%emt 0:00:14]} 40. Rd1 {[%emt 0:03:01]} Ra8 {[%emt 0:02:07]} 41. Qb6 {[%emt 0:02:00]} Rb7 {[%emt 0:01:01]} 42. Qf2 {[%emt 0:00:42]} Rc7 {[%emt 0:00:42]} 43. Rda1 {[%emt 0:00:26]} Qb7 {[%emt 0:00:31]} 44. Qe2 {[%emt 0:00:17]} Bc5 {[%emt 0:02:45]} 45. Bc4 {[%emt 0:00:51]} Rd8 {[%emt 0:00:01]} 46. c3 {[%emt 0:01:12]} Nxc4 {[%emt 0:01:56]} 47. Qxc4 {[%emt 0:00:06]} Kf8 48. Ra5 {[%emt 0:02:37]} Bd4 {[%emt 0:01:03]} 49. Qd3 {[%emt 0:00:45]} bxc3 {[%emt 0:00:16]} 50. Bf2 {[%emt 0:00:27]} c2 {[%emt 0:01:04]} 51. Rc1 Rc3 {[%emt 0:00:14]} 52. Qxc3 {[%emt 0:00:58]} Bxc3 {[%emt 0:00:02]} 53. Rxc2 {[%emt 0:00:21]} Bxa5 {[%emt 0:00:11]} 0-1

[Event "35th Roquetas Festival 2024"]
[Site "Roquetas de Mar"]
[Date "2024.01.06"]
[Round "7.13"]
[White "Stremavicius, Pijus"]
[Black "Moral Garcia, Serafin"]
[Result "1-0"]
[ECO "A05"]
[WhiteElo "2393"]
[BlackElo "2246"]
[Annotator "RC"]
[PlyCount "69"]
[EventDate "2024.01.02"]
[EventType "swiss"]
[EventCountry "ESP"]
[SourceTitle "playchess.com"]
[Source "ChessBase"]
[SourceQuality "1"]
[TimeControl "5400+30"]

1. Nf3 {[%emt 0:02:45]} Nf6 {[%emt 0:00:08]} 2. b3 {[%emt 0:00:07]} g6 {[%emt 0:00:16]} 3. Bb2 {[%emt 0:00:12]} Bg7 {[%emt 0:00:13]} 4. g3 {[%emt 0:00:12]} c5 {[%emt 0:00:12]} 5. c4 {[%emt 0:00:07]} O-O {[%emt 0:00:25]} 6. Bg2 {[%emt 0:00:03]} Nc6 {[%emt 0:00:36]} 7. O-O {[%emt 0:00:09]} d6 {[%emt 0:00:49]} 8. d4 {[%emt 0:00:11]} Ne4 {[%emt 0:00:42]} 9. e3 {[%emt 0:00:34]} Bg4 {[%emt 0:01:08]} 10. Qc1 {[%emt 0:00:11]} Qd7 {[%emt 0:10:09]} 11. d5 {[%emt 0:03:47]} Bxb2 {[%emt 0:00:56]} 12. Qxb2 {[%emt 0:00:48]} Nb4 {[%emt 0:01:27]} 13. Ne1 {[%emt 0:00:20]} Nf6 {[%emt 0:03:08]} 14. Nc3 {[%emt 0:01:39]} Bh3 {[%emt 0:02:31]} 15. e4 {[%emt 0:00:48]} Bxg2 {[%emt 0:01:43]} 16. Kxg2 {[%emt 0:03:32]} e5 {[%emt 0:02:57]} 17. a3 {[%emt 0:00:57]} Na6 {[%emt 0:00:33]} 18. Nd3 {[%emt 0:00:11]} Nc7 {[%emt 0:03:13]} 19. f4 {[%emt 0:01:32]} exf4 {[%emt 0:04:08]} 20. gxf4 {[%emt 0:00:17]} Qg4+ {[%emt 0:07:57]} 21. Kh1 {[%emt 0:00:06]} Qh3 {[%emt 0:00:11]} 22. Qe2 {[%emt 0:02:17]} Rae8 {[%emt 0:03:32]} 23. Rae1 {[%emt 0:01:40]} Ng4 {[%emt 0:09:31]} 24. Rf3 {[%emt 0:00:54]} Qh4 {[%emt 0:00:10]} 25. Rg3 {[%emt 0:12:02]} f5 {[%emt 0:01:50]} 26. e5 {[%emt 0:00:31]} Rf7 {[%emt 0:07:24]} 27. Qg2 {[%emt 0:07:26]} Rfe7 {[%emt 0:08:08]} 28. Rh3 {[%emt 0:01:28]} Qf6 {[%emt 0:00:07]} 29. Ne4 {[%emt 0:00:03]} Qg7 {[%emt 0:03:27]} 30. Nxd6 {[%emt 0:01:25]} Rd8 {[%emt 0:00:05]} 31. Nxb7 {[%emt 0:00:34]} Nxd5 {[%emt 0:00:17]} 32. Nxd8 {[%emt 0:00:17]} Nxf4 {[%emt 0:00:04]} 33. Nxf4 {[%emt 0:00:14]} Rxe5 {[%emt 0:00:02]} 34. Rxe5 {[%emt 0:00:15]} Qxe5 {[%emt 0:00:09]} 35. Qd5+ {[%emt 0:00:02]} 1-0

[Event "35th Roquetas Festival 2024"]
[Site "Roquetas de Mar"]
[Date "2024.01.06"]
[Round "7.14"]
[White "Bernal Moro, Luis Javier"]
[Black "Gomez Arce, Alejandro"]
[Result "1-0"]
[ECO "A15"]
[WhiteElo "2370"]
[BlackElo "2074"]
[Annotator "RC"]
[PlyCount "75"]
[EventDate "2024.01.02"]
[EventType "swiss"]
[EventCountry "ESP"]
[SourceTitle "playchess.com"]
[Source "ChessBase"]
[SourceQuality "1"]
[TimeControl "5400+30"]

1. c4 {[%emt 0:04:26]} Nf6 {[%emt 0:00:14]} 2. Nf3 {[%emt 0:00:33]} b6 {[%emt 0:00:09]} 3. g3 {[%emt 0:04:21]} Bb7 {[%emt 0:00:08]} 4. Bg2 {[%emt 0:00:04]} g6 {[%emt 0:00:08]} 5. O-O {[%emt 0:02:42]} Bg7 {[%emt 0:00:06]} 6. d4 {[%emt 0:00:08]} O-O {[%emt 0:00:10]} 7. d5 {[%emt 0:06:18]} Na6 {[%emt 0:01:39]} 8. Nc3 {[%emt 0:00:54]} Nc5 {[%emt 0:00:33]} 9. Re1 {[%emt 0:02:10]} e6 {[%emt 0:05:06]} 10. e4 {[%emt 0:12:13]} d6 {[%emt 0:03:52]} 11. Rb1 {[%emt 0:11:33]} a5 {[%emt 0:05:48]} 12. Qc2 {[%emt 0:20:20]} Nfd7 {[%emt 0:21:53]} 13. Bg5 {[%emt 0:03:01]} Bf6 {[%emt 0:02:38]} 14. Bd2 {[%emt 0:09:26]} Ne5 15. Nxe5 {[%emt 0:02:34]} Bxe5 {[%emt 0:10:09]} 16. Bh6 {[%emt 0:02:07]} Re8 {[%emt 0:06:41]} 17. Qd2 {[%emt 0:01:16]} Ba6 {[%emt 0:07:02]} 18. b3 {[%emt 0:01:39]} exd5 {[%emt 0:10:24]} 19. Nxd5 {[%emt 0:02:29]} Bb7 {[%emt 0:04:33]} 20. Bg5 {[%emt 0:01:24]} f6 {[%emt 0:02:24]} 21. Be3 {[%emt 0:00:08]} Bxd5 {[%emt 0:01:06]} 22. Qxd5+ {[%emt 0:03:05]} Kg7 {[%emt 0:00:01]} 23. Qd2 {[%emt 0:00:41]} f5 {[%emt 0:00:45]} 24. exf5 {[%emt 0:00:05]} gxf5 {[%emt 0:00:34]} 25. Bxa8 {[%emt 0:00:11]} Qxa8 {[%emt 0:00:16]} 26. Bxc5 {[%emt 0:01:20]} bxc5 {[%emt 0:00:32]} 27. Qg5+ {[%emt 0:00:13]} Kh8 {[%emt 0:00:04]} 28. Qxf5 {[%emt 0:00:23]} Rf8 {[%emt 0:00:24]} 29. Qe4 {[%emt 0:00:35]} Qc8 {[%emt 0:00:32]} 30. Kg2 {[%emt 0:01:03]} Bd4 {[%emt 0:01:11]} 31. Re2 {[%emt 0:00:18]} Qb8 {[%emt 0:00:57]} 32. Rd1 {[%emt 0:00:18]} Qa7 {[%emt 0:00:44]} 33. Rd3 {[%emt 0:00:11]} a4 {[%emt 0:01:17]} 34. Rf3 {[%emt 0:00:18]} Rg8 {[%emt 0:01:23]} 35. Rf7 {[%emt 0:01:05]} Bg7 {[%emt 0:00:04]} 36. Qf3 {[%emt 0:00:17]} axb3 {[%emt 0:00:23]} 37. axb3 {[%emt 0:00:05]} Be5 {[%emt 0:00:24]} 38. Rxe5 {[%emt 0:00:21]} 1-0

[Event "35th Roquetas Festival 2024"]
[Site "Roquetas de Mar"]
[Date "2024.01.06"]
[Round "7.15"]
[White "Alba Fernandez, Nicolas"]
[Black "Garcia Fernandez, Victor"]
[Result "1/2-1/2"]
[ECO "E32"]
[WhiteElo "2123"]
[BlackElo "2366"]
[Annotator "RC"]
[PlyCount "60"]
[EventDate "2024.01.02"]
[EventType "swiss"]
[EventCountry "ESP"]
[SourceTitle "playchess.com"]
[Source "ChessBase"]
[SourceQuality "1"]
[TimeControl "5400+30"]

1. d4 {[%emt 0:00:14]} Nf6 {[%emt 0:01:14]} 2. c4 {[%emt 0:00:18]} e6 {[%emt 0:02:53]} 3. Nc3 {[%emt 0:00:29]} Bb4 {[%emt 0:00:30]} 4. Qc2 {[%emt 0:00:55]} Qe7 {[%emt 0:04:07]} 5. e4 {[%emt 0:12:11]} e5 {[%emt 0:00:29]} 6. dxe5 {[%emt 0:00:22]} Bxc3+ {[%emt 0:00:07]} 7. Qxc3 {[%emt 0:02:18]} Nxe4 {[%emt 0:00:11]} 8. Qd4 {[%emt 0:00:40]} Qb4+ {[%emt 0:00:39]} 9. Bd2 {[%emt 0:03:53]} Nxd2 {[%emt 0:00:36]} 10. Qxd2 {[%emt 0:00:04]} Nc6 {[%emt 0:01:02]} 11. Qxb4 {[%emt 0:09:39]} Nxb4 {[%emt 0:00:50]} 12. Kd2 {[%emt 0:00:10]} O-O {[%emt 0:01:03]} 13. f4 {[%emt 0:00:21]} Rd8 {[%emt 0:32:45]} 14. Kc3 {[%emt 0:06:57]} Nc6 {[%emt 0:00:23]} 15. Rd1 {[%emt 0:00:13]} d6 {[%emt 0:01:36]} 16. exd6 {[%emt 0:02:48]} Rxd6 {[%emt 0:00:05]} 17. Rxd6 {[%emt 0:00:41]} cxd6 {[%emt 0:00:01]} 18. Bd3 {[%emt 0:04:45]} Be6 {[%emt 0:04:16]} 19. Be4 {[%emt 0:11:18]} Rd8 {[%emt 0:00:35]} 20. Bxc6 {[%emt 0:03:51]} bxc6 {[%emt 0:00:03]} 21. Nf3 {[%emt 0:00:12]} Kf8 {[%emt 0:04:55]} 22. b4 {[%emt 0:05:16]} a6 {[%emt 0:07:31]} 23. Re1 {[%emt 0:00:58]} c5 {[%emt 0:08:33]} 24. a3 {[%emt 0:01:20]} cxb4+ {[%emt 0:00:23]} 25. axb4 {[%emt 0:00:05]} Rc8 {[%emt 0:00:07]} 26. Nd2 {[%emt 0:00:08]} Bxc4 {[%emt 0:00:24]} 27. Nxc4 {[%emt 0:10:54]} d5 {[%emt 0:01:46]} 28. g3 {[%emt 0:00:07]} Rxc4+ {[%emt 0:00:07]} 29. Kb3 {[%emt 0:00:04]} Rc6 {[%emt 0:00:09]} 30. Re5 {[%emt 0:00:07]} Rd6 1/2-1/2

[Event "35th Roquetas Festival 2024"]
[Site "Roquetas de Mar"]
[Date "2024.01.06"]
[Round "7.16"]
[White "Luque Saiz, Andres"]
[Black "Marin Ferragut, Pau"]
[Result "1-0"]
[ECO "D38"]
[WhiteElo "2328"]
[BlackElo "2178"]
[Annotator "RC"]
[PlyCount "123"]
[EventDate "2024.01.02"]
[EventType "swiss"]
[EventCountry "ESP"]
[SourceTitle "playchess.com"]
[Source "ChessBase"]
[SourceQuality "1"]
[TimeControl "5400+30"]

1. Nf3 {[%emt 0:08:44]} Nf6 {[%emt 0:01:27]} 2. c4 {[%emt 0:00:50]} e6 {[%emt 0:00:19]} 3. Nc3 {[%emt 0:02:34]} d5 {[%emt 0:00:10]} 4. d4 {[%emt 0:00:32]} Bb4 {[%emt 0:00:09]} 5. Bd2 {[%emt 0:09:13]} O-O {[%emt 0:02:02]} 6. e3 {[%emt 0:01:39]} b6 {[%emt 0:04:14]} 7. Bd3 {[%emt 0:08:49]} Bb7 {[%emt 0:01:03]} 8. cxd5 {[%emt 0:03:45]} exd5 {[%emt 0:00:03]} 9. O-O {[%emt 0:01:08]} a6 {[%emt 0:01:08]} 10. Ne5 {[%emt 0:19:56]} Bd6 {[%emt 0:08:34]} 11. f4 {[%emt 0:01:15]} c5 {[%emt 0:02:53]} 12. Be1 {[%emt 0:00:45]} Ne4 {[%emt 0:02:51]} 13. Qh5 {[%emt 0:04:59]} f5 {[%emt 0:13:11]} 14. Bh4 {[%emt 0:01:10]} Qe8 {[%emt 0:03:03]} 15. Qxe8 {[%emt 0:11:41]} Rxe8 {[%emt 0:00:01]} 16. Na4 {[%emt 0:01:33]} cxd4 {[%emt 0:07:26]} 17. exd4 {[%emt 0:01:39]} b5 {[%emt 0:07:00]} 18. Nb6 {[%emt 0:02:19]} Ra7 {[%emt 0:00:19]} 19. Rac1 {[%emt 0:00:13]} Bb4 {[%emt 0:08:11]} 20. Be1 {[%emt 0:01:07]} Be7 {[%emt 0:03:55]} 21. Rc2 {[%emt 0:00:55]} b4 {[%emt 0:08:11]} 22. Bf2 {[%emt 0:02:14]} a5 {[%emt 0:08:08]} 23. Rfc1 {[%emt 0:01:01]} Ra6 {[%emt 0:00:14]} 24. Bxa6 {[%emt 0:11:35]} Nxa6 {[%emt 0:00:01]} 25. Be3 {[%emt 0:01:54]} Bf8 {[%emt 0:04:31]} 26. Rc7 {[%emt 0:01:10]} Nxc7 {[%emt 0:00:24]} 27. Rxc7 {[%emt 0:00:01]} Nd6 {[%emt 0:00:59]} 28. b3 {[%emt 0:00:35]} Be7 {[%emt 0:00:47]} 29. Na4 {[%emt 0:00:54]} Ba8 30. Ra7 {[%emt 0:00:40]} Bf8 {[%emt 0:04:22]} 31. Rxa5 {[%emt 0:00:24]} Bb7 {[%emt 0:01:39]} 32. Nc5 {[%emt 0:00:16]} Bc8 {[%emt 0:02:42]} 33. Bd2 {[%emt 0:00:32]} Ne4 {[%emt 0:00:35]} 34. Bxb4 {[%emt 0:00:25]} Bd6 {[%emt 0:01:19]} 35. Ra8 {[%emt 0:00:44]} Kf8 {[%emt 0:00:33]} 36. a3 {[%emt 0:00:42]} Ke7 {[%emt 0:00:26]} 37. Ncd3 {[%emt 0:00:31]} Bxb4 {[%emt 0:00:29]} 38. Nxb4 {[%emt 0:00:05]} Nc3 {[%emt 0:00:42]} 39. Kf2 {[%emt 0:00:40]} Kd6 {[%emt 0:00:21]} 40. Ke3 {[%emt 0:00:42]} g5 {[%emt 0:00:44]} 41. g3 {[%emt 0:00:26]} gxf4+ {[%emt 0:00:06]} 42. gxf4 {[%emt 0:00:03]} Rg8 {[%emt 0:00:47]} 43. Nbc6 {[%emt 0:00:41]} Nb5 {[%emt 0:00:36]} 44. Na7 {[%emt 0:00:56]} Nxa7 45. Rxa7 {[%emt 0:00:02]} Rg2 {[%emt 0:00:23]} 46. Rxh7 {[%emt 0:00:19]} Be6 {[%emt 0:00:08]} 47. Nd3 {[%emt 0:00:23]} Bc8 {[%emt 0:00:46]} 48. Rh6+ {[%emt 0:00:13]} Ke7 {[%emt 0:00:11]} 49. Nc5 {[%emt 0:00:12]} Rg1 {[%emt 0:00:09]} 50. Rh8 {[%emt 0:00:37]} Be6 {[%emt 0:00:21]} 51. Rh6 {[%emt 0:00:13]} Bf7 {[%emt 0:00:25]} 52. a4 {[%emt 0:00:13]} Re1+ {[%emt 0:00:18]} 53. Kd2 {[%emt 0:00:23]} Rf1 {[%emt 0:00:09]} 54. Nd3 {[%emt 0:00:16]} Be8 {[%emt 0:00:18]} 55. Ke2 {[%emt 0:00:48]} Rb1 {[%emt 0:00:09]} 56. Nc5 {[%emt 0:00:05]} Rb2+ {[%emt 0:00:05]} 57. Ke3 {[%emt 0:00:12]} Ra2 {[%emt 0:00:23]} 58. Re6+ {[%emt 0:00:40]} Kf7 {[%emt 0:00:07]} 59. Re5 {[%emt 0:00:09]} Rxh2 {[%emt 0:00:25]} 60. Rxf5+ {[%emt 0:00:03]} Ke7 {[%emt 0:00:08]} 61. Rxd5 {[%emt 0:00:14]} Bh5 {[%emt 0:00:07]} 62. a5 {[%emt 0:00:31]} 1-0

[Event "35th Roquetas Festival 2024"]
[Site "Roquetas de Mar"]
[Date "2024.01.06"]
[Round "7.17"]
[White "Del Prado Rodriguez, Xulio"]
[Black "Gomez Sanjuan, Hector Fernando"]
[Result "0-1"]
[ECO "E49"]
[WhiteElo "2294"]
[BlackElo "2139"]
[Annotator "RC"]
[PlyCount "94"]
[EventDate "2024.01.02"]
[EventType "swiss"]
[EventCountry "ESP"]
[SourceTitle "playchess.com"]
[Source "ChessBase"]
[SourceQuality "1"]
[TimeControl "5400+30"]

1. d4 {[%emt 0:00:52]} Nf6 {[%emt 0:06:49]} 2. c4 {[%emt 0:00:58]} e6 {[%emt 0:00:08]} 3. Nc3 {[%emt 0:00:06]} Bb4 {[%emt 0:00:08]} 4. e3 {[%emt 0:00:06]} O-O {[%emt 0:00:11]} 5. Bd3 {[%emt 0:00:25]} d5 {[%emt 0:00:56]} 6. a3 {[%emt 0:00:17]} Bxc3+ {[%emt 0:00:09]} 7. bxc3 {[%emt 0:00:08]} dxc4 {[%emt 0:00:05]} 8. Bxc4 {[%emt 0:00:07]} c5 {[%emt 0:00:06]} 9. Nf3 {[%emt 0:00:26]} Qc7 {[%emt 0:00:37]} 10. Be2 {[%emt 0:00:16]} b6 {[%emt 0:03:45]} 11. Bb2 {[%emt 0:00:08]} Bb7 {[%emt 0:01:39]} 12. O-O {[%emt 0:00:09]} Nbd7 {[%emt 0:01:53]} 13. c4 {[%emt 0:00:07]} cxd4 {[%emt 0:02:38]} 14. exd4 {[%emt 0:01:39]} Qf4 {[%emt 0:00:09]} 15. Qd2 {[%emt 0:04:03]} Qg4 {[%emt 0:13:37]} 16. h3 {[%emt 0:10:49]} Qh5 {[%emt 0:05:43]} 17. a4 {[%emt 0:03:38]} Rfd8 {[%emt 0:01:56]} 18. Qe3 {[%emt 0:05:46]} Rac8 {[%emt 0:04:30]} 19. Rfc1 {[%emt 0:11:38]} Qf5 {[%emt 0:09:20]} 20. Nd2 {[%emt 0:17:39]} h6 {[%emt 0:07:05]} 21. a5 {[%emt 0:03:26]} Qg6 {[%emt 0:08:53]} 22. Bf1 {[%emt 0:03:46]} bxa5 {[%emt 0:00:46]} 23. Rxa5 {[%emt 0:01:46]} a6 {[%emt 0:00:36]} 24. Ba3 {[%emt 0:15:39]} Nb8 {[%emt 0:02:08]} 25. Rb1 {[%emt 0:02:11]} Ba8 {[%emt 0:01:43]} 26. Rb2 {[%emt 0:03:13]} Rd7 {[%emt 0:03:45]} 27. Bc5 {[%emt 0:02:32]} Rcd8 {[%emt 0:05:28]} 28. Ra3 {[%emt 0:02:37]} Kh8 {[%emt 0:07:09]} 29. Qf4 {[%emt 0:01:06]} Nh5 {[%emt 0:01:52]} 30. Qh2 {[%emt 0:01:22]} Nc6 {[%emt 0:00:17]} 31. Bb6 {[%emt 0:00:22]} Rc8 {[%emt 0:01:21]} 32. Nb3 {[%emt 0:03:24]} a5 {[%emt 0:01:50]} 33. Rd2 {[%emt 0:02:53]} Qb1 {[%emt 0:01:09]} 34. Bxa5 {[%emt 0:01:13]} Nxa5 {[%emt 0:01:19]} 35. Nxa5 {[%emt 0:00:01]} Qc1 {[%emt 0:02:28]} 36. Raa2 {[%emt 0:00:32]} Nf6 {[%emt 0:02:25]} 37. Rac2 {[%emt 0:00:10]} Qb1 {[%emt 0:00:26]} 38. Rb2 {[%emt 0:00:09]} Qe1 {[%emt 0:00:26]} 39. Rb8 {[%emt 0:00:38]} Rxb8 {[%emt 0:01:34]} 40. Qxb8+ {[%emt 0:00:08]} Kh7 {[%emt 0:00:02]} 41. Ra2 {[%emt 0:00:40]} Be4 {[%emt 0:00:13]} 42. Qe5 {[%emt 0:00:52]} Qd1 {[%emt 0:00:59]} 43. d5 {[%emt 0:01:15]} exd5 {[%emt 0:01:10]} 44. c5 {[%emt 0:00:08]} d4 {[%emt 0:00:45]} 45. c6 {[%emt 0:00:07]} Rd5 {[%emt 0:00:12]} 46. Qg3 {[%emt 0:02:23]} Rg5 {[%emt 0:00:11]} 47. Qh2 {[%emt 0:01:33]} Bd3 {[%emt 0:00:19]} 0-1

[Event "35th Roquetas Festival 2024"]
[Site "Roquetas de Mar"]
[Date "2024.01.06"]
[Round "7.18"]
[White "Ibanez Koblash, Daniel"]
[Black "Garrido Diaz, Jose Antonio"]
[Result "0-1"]
[ECO "E04"]
[WhiteElo "1830"]
[BlackElo "2291"]
[Annotator "RC"]
[PlyCount "72"]
[EventDate "2024.01.02"]
[EventType "swiss"]
[EventCountry "ESP"]
[SourceTitle "playchess.com"]
[Source "ChessBase"]
[SourceQuality "1"]
[TimeControl "5400+30"]

1. d4 {[%emt 0:00:03]} d5 {[%emt 0:00:10]} 2. Nf3 {[%emt 0:00:06]} Nf6 {[%emt 0:00:08]} 3. c4 {[%emt 0:00:06]} e6 {[%emt 0:00:07]} 4. g3 {[%emt 0:00:09]} dxc4 {[%emt 0:01:09]} 5. Bg2 {[%emt 0:01:23]} a6 {[%emt 0:00:31]} 6. a4 {[%emt 0:01:11]} c5 {[%emt 0:02:32]} 7. O-O {[%emt 0:01:56]} cxd4 {[%emt 0:00:16]} 8. Nxd4 {[%emt 0:01:17]} e5 {[%emt 0:01:23]} 9. Nc2 {[%emt 0:02:05]} Qxd1 {[%emt 0:09:09]} 10. Rxd1 {[%emt 0:00:17]} Nc6 {[%emt 0:00:02]} 11. Nc3 {[%emt 0:06:40]} Be6 {[%emt 0:03:41]} 12. Be3 {[%emt 0:08:22]} Be7 {[%emt 0:04:21]} 13. Rac1 {[%emt 0:02:05]} O-O {[%emt 0:03:14]} 14. Bg5 {[%emt 0:06:08]} Rad8 {[%emt 0:06:12]} 15. Bxf6 {[%emt 0:01:54]} Bxf6 {[%emt 0:01:33]} 16. Nd5 {[%emt 0:00:40]} Na5 {[%emt 0:11:43]} 17. Nxf6+ {[%emt 0:01:45]} gxf6 {[%emt 0:00:02]} 18. Ne3 {[%emt 0:03:14]} b5 {[%emt 0:11:45]} 19. axb5 {[%emt 0:07:10]} axb5 {[%emt 0:00:02]} 20. Nc2 {[%emt 0:04:51]} Nb3 {[%emt 0:02:40]} 21. Rb1 {[%emt 0:00:55]} Nd2 {[%emt 0:03:47]} 22. Rbc1 {[%emt 0:04:54]} Rd6 {[%emt 0:01:24]} 23. Nb4 {[%emt 0:04:58]} Rfd8 {[%emt 0:00:31]} 24. Kh1 {[%emt 0:00:23]} Nb3 {[%emt 0:00:49]} 25. Rxd6 {[%emt 0:02:32]} Rxd6 {[%emt 0:00:01]} 26. Rb1 {[%emt 0:00:45]} Rd2 {[%emt 0:01:35]} 27. e4 {[%emt 0:06:58]} Rxf2 {[%emt 0:02:15]} 28. Kg1 {[%emt 0:02:15]} Re2 {[%emt 0:01:20]} 29. Kf1 {[%emt 0:01:33]} Bg4 {[%emt 0:00:27]} 30. Kg1 {[%emt 0:02:57]} Nd2 {[%emt 0:02:07]} 31. Ra1 {[%emt 0:01:01]} Nf3+ {[%emt 0:02:52]} 32. Kh1 {[%emt 0:00:33]} Nd4 {[%emt 0:05:58]} 33. Nd5 {[%emt 0:01:08]} Bf3 {[%emt 0:02:03]} 34. Bxf3 {[%emt 0:01:16]} Nxf3 {[%emt 0:00:06]} 35. Nxf6+ {[%emt 0:00:18]} Kg7 {[%emt 0:00:03]} 36. Ng4 {[%emt 0:00:15]} h5 {[%emt 0:00:14]} 0-1

[Event "35th Roquetas Festival 2024"]
[Site "Roquetas de Mar"]
[Date "2024.01.06"]
[Round "7.19"]
[White "Rodriguez Garcia, Manuel Francisco"]
[Black "Merario Alarcon, Andres"]
[Result "1/2-1/2"]
[ECO "A13"]
[WhiteElo "2130"]
[BlackElo "2429"]
[Annotator "RC"]
[PlyCount "78"]
[EventDate "2024.01.02"]
[EventType "swiss"]
[EventCountry "ESP"]
[SourceTitle "playchess.com"]
[Source "ChessBase"]
[SourceQuality "1"]
[TimeControl "5400+30"]

1. c4 {[%emt 0:00:02]} e6 {[%emt 0:04:03]} 2. Nf3 {[%emt 0:00:08]} d5 {[%emt 0:00:06]} 3. g3 {[%emt 0:00:03]} d4 {[%emt 0:00:52]} 4. Bg2 {[%emt 0:00:10]} Nc6 {[%emt 0:00:13]} 5. d3 {[%emt 0:00:16]} Nge7 {[%emt 0:03:18]} 6. O-O {[%emt 0:17:41]} Nf5 {[%emt 0:00:15]} 7. e4 {[%emt 0:05:49]} dxe3 {[%emt 0:04:07]} 8. Bxe3 {[%emt 0:08:39]} Nxe3 {[%emt 0:04:12]} 9. fxe3 {[%emt 0:00:06]} e5 {[%emt 0:13:06]} 10. d4 {[%emt 0:05:22]} e4 {[%emt 0:01:30]} 11. Nh4 {[%emt 0:11:14]} Qg5 {[%emt 0:02:06]} 12. Qb3 {[%emt 0:00:04]} g6 {[%emt 0:16:35]} 13. Bxe4 {[%emt 0:03:53]} Bh6 {[%emt 0:00:08]} 14. Ng2 {[%emt 0:03:36]} O-O {[%emt 0:02:05]} 15. Nc3 {[%emt 0:01:26]} Ne7 {[%emt 0:07:45]} 16. Rae1 {[%emt 0:10:56]} c6 {[%emt 0:00:52]} 17. Bf3 {[%emt 0:03:52]} Nf5 {[%emt 0:01:15]} 18. d5 {[%emt 0:01:57]} cxd5 {[%emt 0:04:32]} 19. Bxd5 {[%emt 0:03:02]} Qe7 {[%emt 0:00:47]} 20. Ne4 {[%emt 0:04:34]} Rb8 {[%emt 0:04:28]} 21. g4 {[%emt 0:00:45]} Ng7 {[%emt 0:02:59]} 22. Nf6+ {[%emt 0:07:39]} Kh8 {[%emt 0:00:09]} 23. Qc3 {[%emt 0:00:08]} Bg5 {[%emt 0:00:53]} 24. h3 {[%emt 0:00:18]} Bf5 {[%emt 0:01:07]} 25. Nh5 {[%emt 0:02:13]} gxh5 26. Rxf5 {[%emt 0:00:38]} f6 {[%emt 0:02:38]} 27. Rf3 {[%emt 0:01:29]} hxg4 {[%emt 0:06:40]} 28. hxg4 {[%emt 0:00:01]} Qd7 {[%emt 0:00:31]} 29. Qd4 {[%emt 0:00:35]} Ne6 {[%emt 0:07:16]} 30. Bxe6 {[%emt 0:01:58]} Qxe6 {[%emt 0:00:01]} 31. Rf5 {[%emt 0:00:16]} Rbd8 {[%emt 0:00:33]} 32. Rd5 {[%emt 0:00:27]} Rxd5 {[%emt 0:00:52]} 33. cxd5 {[%emt 0:00:06]} Qd6 {[%emt 0:00:53]} 34. Rf1 {[%emt 0:01:43]} Kg8 {[%emt 0:01:15]} 35. Nf4 {[%emt 0:01:37]} Re8 {[%emt 0:01:52]} 36. Kg2 {[%emt 0:00:46]} Re5 {[%emt 0:00:55]} 37. e4 {[%emt 0:01:48]} Qd7 {[%emt 0:00:57]} 38. Kg3 {[%emt 0:01:02]} Qd6 {[%emt 0:00:55]} 39. Kg2 {[%emt 0:00:27]} Qd7 {[%emt 0:02:37]} 1/2-1/2